{"text_format":"1","workbook":"xlsx","n_sheets":2,"sheets":["Istruzioni","Piano Finanziario 2"],"not_rendered":{"charts":0,"images":0,"macros":1,"external_links":0,"defined_names":1,"comments":1,"pivot_tables":0},"unopened":[],"bounds":{"document_bytes":16777216,"sheet_cells":100000,"rows_first":2000,"rows_last":500,"rows_between":2000,"halvings":0,"cell_chars":16384,"cell_head_chars":4096},"cells_cut":0,"cells_raw":0,"read":"whole","date_system":"1900"}

{"sheet":"Istruzioni","index":0,"n_rows":6,"n_cols":1,"rows_kept":6,"cut":false,"hidden":false,"merged":[]}
[]
["Compilare solo i campi evidenziati con lo sfondo giallo, più specificamente, indicare:"]
["nelle colonne L, M, N, …U, le spese previste, per ciascuna tipologia e per ciascun partner"]
["nelle celle L13, M13, N13, … U13, inserire il nome del Partner"]
["nelle celle L26, M26, N26, … U26, inserire la quota di cofinanziamento per partner sino a rispettare il 10% sul totale "]
["Indicare inoltre il titolo del progetto, il nome dell'ente proponente, il nome e cognome del rapp. Legale"]

{"sheet":"Piano Finanziario 2","index":1,"n_rows":31,"n_cols":23,"rows_kept":31,"cut":false,"hidden":false,"merged":[[1,4,1,5],[29,4,29,6],[30,5,30,6],[9,4,9,7],[9,9,9,10],[10,4,10,7],[11,4,11,7],[11,10,11,21],[27,5,27,8],[28,3,28,5]]}
[]
[null,null,null,null,"Allegato 5"]
[]
[]
[]
[]
[null,null,null,null,null," "]
[]
[]
[null,null,null,null,"                                                                                                                                                                                                                                                                                                                                                                                                                                                                                            \n            Avviso pubblico rivolto ad Enti del terzo settore per la presentazione di proposte progettuali di empowerment delle comunità migranti e sensibilizzazione delle comunità locali al tema del contrasto allo sfruttamento lavorativo-  SUPREME 2 (CIG B7CA1D79D3 CUP G29G23000930007): Allegato 5 – BUDGET PROPOSTA PROGETTUALE \n"]
[null,null,null,null,"ENTE CAPOFILA: ……………………………."]
[null,null,null,null,"PROGETTO ………………………………………………………..………",null,null,null,null,null,"Distribuzione delle spese previste tra partner"]
[null,null,null,null,null,"VOCI DI SPESA","COSTO","% TOTALE","Note",null,"VOCI","PARTNER         …..","PARTNER …….","PARTNER …….","PARTNER …….","PARTNER …….","PARTNER …….","PARTNER …….","PARTNER …….","PARTNER …….","PARTNER …….","TOTALE "]
[null,null,null,null,1,"PERSONALE DIPENDENTE  ",null,null,null,null,"PERSONALE DIPENDENTE  ",null,null,null,null,null,null,null,null,null,null,{"$f":"SUM(L14:U14)","v":0}]
[null,null,null,null,{"$f":"IFERROR(__xludf.DUMMYFUNCTION(\"+E14+1\"),2)","v":2},"PERSONALE ESTERNO ",null,null,null,null,"PERSONALE ESTERNO ",null,null,null,null,null,null,null,null,null,null,0]
[null,null,null,null,{"$f":"IFERROR(__xludf.DUMMYFUNCTION(\"+E15+1\"),3)","v":3},"ACQUISIZIONE DI BENI E ATTREZZATURE",null,null,null,null,"ACQUISIZIONE DI BENI E ATTREZZATURE",null,null,null,null,null,null,null,null,null,null,0]
[null,null,null,null,{"$f":"IFERROR(__xludf.DUMMYFUNCTION(\"+E16+1\"),4)","v":4},"SPESE DI LOCAZIONE",null,null,null,null,"SPESE DI LOCAZIONE",null,null,null,null,null,null,null,null,null,null,0]
[null,null,null,null,{"$f":"IFERROR(__xludf.DUMMYFUNCTION(\"+E17+1\"),5)","v":5},"PRESTAZIONI DI SERVIZI DA TERZI",null,null,null,null,"PRESTAZIONI DI SERVIZI DA TERZI",null,null,null,null,null,null,null,null,null,null,0]
[null,null,null,null,{"$f":"IFERROR(__xludf.DUMMYFUNCTION(\"+E18+1\"),6)","v":6},"COMUNICAZIONE E PUBBLICITA'",null,null,null,null,"COMUNICAZIONE E PUBBLICITA'",null,null,null,null,null,null,null,null,null,null,0]
[null,null,null,null,{"$f":"IFERROR(__xludf.DUMMYFUNCTION(\"+E19+1\"),7)","v":7},"VIAGGI, VITTO E ALLOGGIO",null,null,null,null,"VIAGGI, VITTO E ALLOGGIO",null,null,null,null,null,null,null,null,null,null,0]
[null,null,null,null,{"$f":"IFERROR(__xludf.DUMMYFUNCTION(\"+E20+1\"),8)","v":8},"MATERIALI DI CONSUMO",null,null,null,null,"MATERIALI DI CONSUMO",null,null,null,null,null,null,null,null,null,null,0]
[null,null,null,null,{"$f":"IFERROR(__xludf.DUMMYFUNCTION(\"+E21+1\"),9)","v":9},"SPESE GENERALI (max 10%)",null,null,"Rispettare il massimale del 10% della spesa totale prevista",null,"SPESE GENERALI (max 10%) **",null,null,null,null,null,null,null,null,null,null,0]
[null,null,null,null,"A","TOTALE GENERALE (somma da 1 a 9) ",null,null,"Il totale spese da coprire con il contributo e il cofinanziamento",null,"TOTALE GENERALE",{"$f":"SUM(L14:L22)","v":0},0,0,0,0,0,0,0,0,0,0]
[null,null,null,null,"B","COFINANZIAMENTO",null,null,"Cofinanziamento minimo 10% del totale spese (A)",null,"Quota % di budget ripartita tra ciascun partner ",{"$f":"IFERROR(__xludf.DUMMYFUNCTION(\"+L23/$V$23\"),\"#DIV/0!\")","v":"#DIV/0!"},{"$f":"IFERROR(__xludf.DUMMYFUNCTION(\"+M23/$V$23\"),\"#DIV/0!\")","v":"#DIV/0!"},{"$f":"IFERROR(__xludf.DUMMYFUNCTION(\"+N23/$V$23\"),\"#DIV/0!\")","v":"#DIV/0!"},{"$f":"IFERROR(__xludf.DUMMYFUNCTION(\"+O23/$V$23\"),\"#DIV/0!\")","v":"#DIV/0!"},{"$f":"IFERROR(__xludf.DUMMYFUNCTION(\"+P23/$V$23\"),\"#DIV/0!\")","v":"#DIV/0!"},{"$f":"IFERROR(__xludf.DUMMYFUNCTION(\"+Q23/$V$23\"),\"#DIV/0!\")","v":"#DIV/0!"},{"$f":"IFERROR(__xludf.DUMMYFUNCTION(\"+R23/$V$23\"),\"#DIV/0!\")","v":"#DIV/0!"},{"$f":"IFERROR(__xludf.DUMMYFUNCTION(\"+S23/$V$23\"),\"#DIV/0!\")","v":"#DIV/0!"},{"$f":"IFERROR(__xludf.DUMMYFUNCTION(\"+T23/$V$23\"),\"#DIV/0!\")","v":"#DIV/0!"},{"$f":"IFERROR(__xludf.DUMMYFUNCTION(\"+U23/$V$23\"),\"#DIV/0!\")","v":"#DIV/0!"},0]
[null,null,null,null,"C","CONTRIBUTO RICHIESTO"]
[null,null,null,null,null,null,null,null,null,null,"COFINANZIAMENTO di ciascun partner (almeno 10% in totale)",null,0,0,0,0,0,0,0,0,0,{"$f":"SUM(L26:U26)","v":0},{"$f":"IFERROR(__xludf.DUMMYFUNCTION(\"+V26/V23\"),\"#DIV/0!\")","v":"#DIV/0!"}]
[null,null,null,null,null,"Luogo e data _________________________________",null,null,null,null,"Contributo pubblico richiesto \n (distribuzione tra i partner)",{"$f":"IFERROR(__xludf.DUMMYFUNCTION(\"+L23-L26\"),0)","v":0},{"$f":"IFERROR(__xludf.DUMMYFUNCTION(\"+M23-M26\"),0)","v":0},{"$f":"IFERROR(__xludf.DUMMYFUNCTION(\"+N23-N26\"),0)","v":0},{"$f":"IFERROR(__xludf.DUMMYFUNCTION(\"+O23-O26\"),0)","v":0},{"$f":"IFERROR(__xludf.DUMMYFUNCTION(\"+P23-P26\"),0)","v":0},{"$f":"IFERROR(__xludf.DUMMYFUNCTION(\"+Q23-Q26\"),0)","v":0},{"$f":"IFERROR(__xludf.DUMMYFUNCTION(\"+R23-R26\"),0)","v":0},{"$f":"IFERROR(__xludf.DUMMYFUNCTION(\"+S23-S26\"),0)","v":0},{"$f":"IFERROR(__xludf.DUMMYFUNCTION(\"+T23-T26\"),0)","v":0},{"$f":"IFERROR(__xludf.DUMMYFUNCTION(\"+U23-U26\"),0)","v":0},{"$f":"V23-V26","v":0},{"$f":"V27/V23","v":{"$error":"#DIV/0!"}}]
[null,null,null,null,null,"(Nome e cognome del legale rappresentante e, in caso di ATS o ATI, del capofila) _________________________________________________________________"]
[]
[null,null,null,null,"_______________________________________________________"]
[null,null,null,null,null," Firma  __________________________________________________"]